fUSD/lending_fUSD_20240718
["ID","MTS","AMOUNT","RATE_DAILY","PERIOD"]
[332503440,1721278270174,-500.0,0.00022191,2]
[332503441,1721278270184,-529.76,0.00022191,2]
[332503442,1721278270194,-500.0,0.00022191,2]
[332503443,1721278270203,-617.32,0.00022191,2]
[332503444,1721278270212,-8197.53,0.00022191,2]
[332503445,1721278270221,-500.0,0.00022191,2]
[332503446,1721278270230,-500.0,0.00022191,2]
[332503447,1721278270240,-1390.05,0.00022191,2]
[332503448,1721278270252,-500.0,0.00022191,2]
[332503449,1721278270262,-500.0,0.00022191,2]
[332503450,1721278270272,-500.0,0.00022191,2]
[332503451,1721278270282,-500.0,0.00022191,2]
[332503452,1721278270291,-772.27,0.00022191,2]
[332503453,1721278270302,-500.0,0.00022191,2]
[332503454,1721278270313,-500.0,0.00022191,2]
[332503455,1721278270323,-500.0,0.00022191,2]
[332503456,1721278270334,-500.0,0.00022191,2]
[332503457,1721278270692,-636.59,0.00022191,2]
[332503458,1721278270710,-500.0,0.00022191,2]
[332503459,1721278270719,-773.6,0.00022191,2]
[332503460,1721278270729,-500.0,0.00022191,2]
[332503461,1721278270739,-1000.0,0.00022191,2]
[332503462,1721278270748,-500.0,0.00022191,2]
[332503463,1721278270758,-1331.79,0.00022191,2]
[332503464,1721278270768,-1627.91,0.00022191,2]
[332503465,1721278270778,-500.0,0.00022191,2]
[332503466,1721278270787,-1293.15,0.00022191,2]
[332503467,1721278270797,-500.0,0.00022191,2]
[332503468,1721278270807,-500.0,0.00022191,2]
[332503469,1721278270817,-877.01,0.00022191,2]
[332503470,1721278270827,-500.0,0.00022191,2]
[332503471,1721278270837,-500.0,0.00022191,2]
[332503472,1721278270846,-2522.6,0.00022191,2]
[332503473,1721278270856,-500.0,0.00022191,2]
[332503474,1721278270866,-151.0,0.00022191,7]
[332503475,1721278270876,-614.97,0.00022191,2]
[332503476,1721278270885,-500.0,0.00022191,2]
[332503477,1721278270896,-500.0,0.00022191,2]
[332503478,1721278270906,-500.0,0.00022191,2]
[332503479,1721278270916,-500.0,0.00022191,2]
[332503480,1721278270925,-500.0,0.00022191,2]
[332503481,1721278270934,-500.0,0.00022191,2]
[332503482,1721278270944,-1546.41,0.00022191,2]
[332503483,1721278270955,-502.67288656,0.00022191,2]
[332503484,1721278270965,-832.04,0.00022191,2]
[332503485,1721278270975,-500.0,0.00022191,2]
[332503486,1721278270985,-1780.82,0.00022191,2]
[332503487,1721278270995,-884.93,0.00022191,2]
[332503488,1721278271004,-500.0,0.00022191,2]
[332503489,1721278271014,-500.0,0.00022191,2]
[332503490,1721278271024,-500.0,0.00022191,2]
[332503491,1721278271035,-707.05,0.00022191,2]
[332503492,1721278271049,-500.0,0.00022191,2]
[332503493,1721278271059,-1691.33,0.00022191,2]
[332503494,1721278271069,-151.0,0.00022191,7]
[332503495,1721278271079,-200.0850002,0.00022191,2]
[332503496,1721278271089,-823.65,0.00022191,2]
[332503497,1721278271098,-500.0,0.00022191,2]
[332503498,1721278271107,-805.79,0.00022191,2]
[332503499,1721278271117,-500.0,0.00022191,2]
[332503500,1721278271126,-500.0,0.00022191,2]
[332503501,1721278271136,-709.27,0.00022191,2]
[332503502,1721278271146,-500.0,0.00022191,2]
[332503503,1721278271156,-500.0,0.00022191,2]
[332503504,1721278271166,-500.0,0.00022191,2]
[332503505,1721278271176,-521.48,0.00022191,2]
[332503506,1721278271185,-771.1,0.00022191,2]
[332503507,1721278271195,-500.0,0.00022191,2]
[332503508,1721278271205,-500.0,0.00022191,2]
[332503509,1721278271215,-500.0,0.00022191,2]
[332503510,1721278271224,-3003.8,0.00022191,2]
[332503511,1721278271233,-997.72,0.00022191,2]
[332503512,1721278271243,-500.0,0.00022191,2]
[332503513,1721278271253,-617.11,0.00022191,2]
[332503514,1721278271263,-500.0,0.00022191,2]
[332503515,1721278271272,-500.0,0.00022191,2]
[332503516,1721278271282,-1220.75,0.00022191,2]
[332503517,1721278271292,-2547.74,0.00022191,2]
[332503518,1721278271301,-500.0,0.00022191,2]
[332503519,1721278271310,-500.0,0.00022191,2]
[332503520,1721278271320,-500.0,0.00022191,2]
[332503521,1721278271330,-756.98,0.00022191,2]
[332503522,1721278271341,-8313.01,0.00022191,2]
[332503523,1721278271350,-505.50976818,0.00022191,2]
[332503524,1721278271360,-500.0,0.00022191,2]
[332503525,1721278271371,-500.0,0.00022191,2]
[332503526,1721278271381,-526.88,0.00022191,2]
[332503527,1721278271391,-372.031596,0.00022191,7]
[332503528,1721278271401,-151.0,0.00022191,7]
[332503529,1721278271410,-500.0,0.00022191,2]
[332503530,1721278271420,-557.85,0.00022191,2]
[332503531,1721278271430,-500.0,0.00022191,2]
[332503532,1721278271440,-500.0,0.00022191,2]
[332503533,1721278271450,-500.0,0.00022191,2]
[332503534,1721278271460,-500.0,0.00022191,2]
[332503535,1721278271470,-500.0,0.00022191,2]
[332503536,1721278271480,-500.0,0.00022191,2]
[332503537,1721278271490,-372.031596,0.00022191,7]
[332503538,1721278271500,-500.0,0.00022191,2]
[332503539,1721278271510,-151.0,0.00022191,7]
[332503540,1721278271520,-500.0,0.00022191,2]
[332503541,1721278271530,-500.0,0.00022191,2]
[332503542,1721278271539,-2903.62,0.00022191,2]
[332503543,1721278271550,-500.64792788,0.00022191,2]
[332503544,1721278271559,-1310.82,0.00022191,2]
[332503545,1721278271569,-500.0,0.00022191,2]
[332503546,1721278271579,-500.0,0.00022191,2]
[332503547,1721278271590,-500.0,0.00022191,2]
[332503548,1721278271599,-1227.17,0.00022191,2]
[332503549,1721278271609,-500.0,0.00022191,2]
[332503550,1721278271619,-500.0,0.00022191,2]
[332503551,1721278271628,-500.0,0.00022191,2]
[332503552,1721278271638,-1313.57,0.00022191,2]
[332503553,1721278271648,-849.08,0.00022191,2]
[332503554,1721278271658,-206.099132,0.00022191,7]
[332503555,1721278271667,-500.0,0.00022191,2]
[332503556,1721278271677,-500.0,0.00022191,2]
[332503557,1721278271687,-924.97,0.00022191,2]
[332503558,1721278271696,-500.0,0.00022191,2]
[332503559,1721278271706,-202.94103061,0.00022191,2]
[332503560,1721278271716,-500.0,0.00022191,2]
[332503561,1721278271725,-500.0,0.00022191,2]
[332503562,1721278271735,-615.96,0.00022191,2]
[332503563,1721278271744,-724.44,0.00022191,2]
[332503564,1721278271753,-518.96,0.00022191,2]
[332503565,1721278271763,-3893.82,0.00022191,2]
[332503566,1721278271773,-523.83,0.00022191,2]
[332503567,1721278271782,-500.0,0.00022191,2]
[332503568,1721278271792,-500.0,0.00022191,2]
[332503569,1721278271801,-500.0,0.00022191,2]
[332503570,1721278271811,-386.1709849,0.00022191,2]
[332503571,1721278271820,-500.0,0.00022191,2]
[332503572,1721278271829,-500.0,0.00022191,2]
[332503573,1721278271840,-500.0,0.00022191,2]
[332503574,1721278271850,-500.0,0.00022191,2]
[332503575,1721278271859,-500.0,0.00022191,2]
[332503576,1721278271868,-151.0,0.00022191,7]
[332503577,1721278271878,-4415.18,0.00022191,2]
[332503578,1721278271887,-791.679712,0.00022191,7]
[332503579,1721278271897,-500.0,0.00022191,2]
[332503580,1721278271906,-500.0,0.00022191,2]
[332503581,1721278271916,-500.0,0.00022191,2]
[332503582,1721278271925,-500.0,0.00022191,2]
[332503583,1721278271934,-508.69,0.00022191,2]
[332503584,1721278271944,-500.0,0.00022191,2]
[332503585,1721278271954,-671.84,0.00022191,2]
[332503586,1721278271963,-993.35,0.00022191,2]
[332503587,1721278271972,-823.77,0.00022191,2]
[332503588,1721278271981,-791.679712,0.00022191,7]
[332503589,1721278271990,-500.0,0.00022191,2]
[332503590,1721278272000,-745.46,0.00022191,2]
[332503591,1721278272010,-500.0,0.00022191,2]
[332503592,1721278272020,-500.0,0.00022191,2]
[332503593,1721278272030,-4168.39,0.00022191,2]
[332503594,1721278272040,-500.0,0.00022191,2]
[332503595,1721278272052,-500.0,0.00022191,2]
[332503596,1721278272062,-500.0,0.00022191,2]
[332503597,1721278272074,-853.51,0.00022191,2]
[332503598,1721278272086,-501.45016533,0.00022191,2]
[332503599,1721278272096,-500.0,0.00022191,2]
[332503600,1721278272105,-517.92,0.00022191,2]
[332503601,1721278272117,-814.39,0.00022191,2]
[332503602,1721278272126,-500.0,0.00022191,2]
[332503603,1721278272135,-500.0,0.00022191,2]
[332503604,1721278272145,-500.0,0.00022191,2]
[332503605,1721278272157,-500.0,0.00022191,2]
[332503606,1721278272168,-500.0,0.00022191,2]
[332503607,1721278272178,-500.0,0.00022191,2]
[332503608,1721278272188,-500.0,0.00022191,2]
[332503609,1721278272198,-2537.23,0.00022191,2]
[332503610,1721278272208,-938.53,0.00022191,2]
[332503611,1721278272219,-1130.61,0.00022191,2]
[332503612,1721278272230,-682.12,0.00022191,2]
[332503613,1721278272241,-773.67,0.00022191,2]
[332503614,1721278272251,-959.84,0.00022191,2]
[332503615,1721278272261,-500.0,0.00022191,2]
[332503616,1721278272272,-1800.16,0.00022191,2]
[332503617,1721278272283,-502.84894097,0.00022191,2]
[332503618,1721278272294,-151.0,0.00022191,7]
[332503619,1721278272304,-1073.57,0.00022191,2]
[332503620,1721278272315,-623.1181631,0.00022191,2]
[332503621,1721278272325,-500.0,0.00022191,2]
[332503622,1721278272335,-500.0,0.00022191,2]
[332503623,1721278272345,-1728.96,0.00022191,2]
[332503624,1721278272354,-150.0,0.00022203,2]
[332503625,1721278272363,-150.0,0.00022227,2]
[332503626,1721278272373,-150.0,0.00022246,2]
[332503627,1721278272383,-150.0,0.00022247,2]
[332503628,1721278272393,-150.0,0.00022264,2]
[332503629,1721278272404,-150.0,0.00022268,2]
[332503630,1721278272414,-150.0,0.00022279,2]
[332503631,1721278272424,-150.0,0.00022287,2]
[332503632,1721278272433,-341.16608633,0.00022293,2]
[332503633,1721278272443,-150.0,0.00022312,2]
[332503634,1721278272452,-150.0,0.00022327,2]
[332503635,1721278272461,-150.0,0.00022331,2]
[332503636,1721278272470,-150.0,0.00022339,2]
[332503637,1721278272479,-150.0,0.00022353,2]
[332503638,1721278272488,-600.16182457,0.0002236,2]
[332503639,1721278272498,-617.20980654,0.00022365,2]
[332503640,1721278272508,-1217.94669112,0.00022365,2]
[332503641,1721278272518,-150.0,0.00022376,2]
[332503642,1721278272528,-150.0,0.00022405,2]
[332503643,1721278272538,-150.0,0.00022411,2]
[332503644,1721278272550,-150.0,0.00022418,2]
[332503645,1721278272560,-150.0,0.00022418,2]
[332503646,1721278272569,-150.0,0.00022425,2]
[332503647,1721278272578,-150.0,0.00022427,2]
[332503648,1721278272587,-150.0,0.00022433,2]
[332503649,1721278272596,-150.0,0.00022433,2]
[332503650,1721278272606,-150.0,0.00022438,2]
[332503651,1721278272615,-150.0,0.00022441,2]
[332503652,1721278272624,-150.0,0.00022442,2]
[332503653,1721278272633,-150.0,0.00022442,2]
[332503654,1721278272642,-150.0,0.00022445,2]
[332503655,1721278272652,-150.0,0.00022451,2]
[332503656,1721278272661,-150.0,0.00022458,2]
[332503657,1721278272671,-150.0,0.00022464,2]
[332503658,1721278272681,-500.0,0.00022465,2]
[332503659,1721278272691,-151.0,0.00022465,7]
[332503660,1721278272700,-660.98,0.00022465,2]
[332503661,1721278272709,-500.0,0.00022465,2]
[332503662,1721278272719,-500.0,0.00022465,2]
[332503663,1721278272730,-563.88,0.00022465,2]
[332503664,1721278272740,-500.0,0.00022465,2]
[332503665,1721278272749,-671.28,0.00022465,2]
[332503666,1721278272759,-500.0,0.00022465,2]
[332503667,1721278272769,-500.0,0.00022465,2]
[332503668,1721278272780,-500.0,0.00022465,2]
[332503669,1721278272791,-500.0,0.00022465,2]
[332503670,1721278272801,-507.45055112,0.00022465,2]
[332503671,1721278272811,-500.0,0.00022465,2]
[332503672,1721278272821,-500.0,0.00022465,2]
[332503673,1721278272830,-1004.82,0.00022465,2]
[332503674,1721278272840,-1395.21,0.00022465,2]
[332503675,1721278272850,-615.75,0.00022465,2]
[332503676,1721278272859,-500.0,0.00022465,2]
[332503677,1721278272868,-500.0,0.00022465,2]
[332503678,1721278272877,-500.0,0.00022465,2]
[332503679,1721278272886,-500.0,0.00022465,2]
[332503680,1721278272896,-500.0,0.00022465,2]
[332503681,1721278272907,-500.0,0.00022465,2]
[332503682,1721278272916,-500.0,0.00022465,2]
[332503683,1721278272926,-500.0,0.00022465,2]
[332503684,1721278272936,-500.0,0.00022465,2]
[332503685,1721278272946,-500.0,0.00022465,2]
[332503686,1721278272956,-922.3,0.00022465,2]
[332503687,1721278272966,-500.0,0.00022465,2]
[332503688,1721278272975,-151.0,0.00022465,7]
[332503689,1721278272985,-500.0,0.00022465,2]
[332503690,1721278272996,-500.0,0.00022465,2]
[332503691,1721278273006,-500.0,0.00022465,2]
[332503692,1721278273015,-500.0,0.00022465,2]
[332503693,1721278273025,-1100.58,0.00022465,2]
[332503694,1721278273034,-500.0,0.00022465,2]
[332503695,1721278273049,-151.0,0.00022465,7]
[332503696,1721278273058,-816.86,0.00022465,2]
[332503697,1721278273068,-521.62504392,0.00022465,2]
[332503698,1721278273079,-505.99339382,0.00022465,2]
[332503699,1721278273088,-842.54,0.00022465,2]
[332503700,1721278273100,-500.0,0.00022465,2]
[332503701,1721278273109,-500.0,0.00022465,2]
[332503702,1721278273117,-500.0,0.00022465,2]
[332503703,1721278273126,-500.0,0.00022465,2]
[332503704,1721278273135,-500.0,0.00022465,2]
[332503705,1721278273144,-500.0,0.00022465,2]
[332503706,1721278273153,-500.0,0.00022465,2]
[332503707,1721278273162,-500.0,0.00022465,2]
[332503708,1721278273171,-263.4053302,0.00022465,2]
[332503709,1721278273180,-500.0,0.00022465,2]
[332503710,1721278273189,-726.21,0.00022465,2]
[332503711,1721278273199,-747.29,0.00022465,2]
[332503712,1721278273208,-500.0,0.00022465,2]
[332503713,1721278273217,-500.0,0.00022465,2]
[332503714,1721278273227,-518.35,0.00022465,2]
[332503715,1721278273236,-500.0,0.00022465,2]
[332503716,1721278273245,-513.68,0.00022465,2]
[332503717,1721278273254,-500.0,0.00022465,2]
[332503718,1721278273263,-912.57,0.00022465,2]
[332503719,1721278273272,-500.0,0.00022465,2]
[332503720,1721278273281,-500.0,0.00022465,2]
[332503721,1721278273290,-500.0,0.00022465,2]
[332503722,1721278273299,-500.0,0.00022465,2]
[332503723,1721278273307,-500.0,0.00022465,2]
[332503724,1721278273316,-715.61,0.00022465,2]
[332503725,1721278273327,-500.0,0.00022465,2]
[332503726,1721278273336,-500.0,0.00022465,2]
[332503727,1721278273347,-500.0,0.00022465,2]
[332503728,1721278273356,-500.0,0.00022465,2]
[332503729,1721278273367,-500.0,0.00022465,2]
[332503730,1721278273376,-265.03916658,0.00022465,2]
[332503731,1721278273385,-500.0,0.00022465,2]
[332503732,1721278273394,-500.0,0.00022465,2]
[332503733,1721278273403,-363.75090872,0.00022465,2]
[332503734,1721278273412,-500.0,0.00022465,2]
[332503735,1721278273422,-155.062494,0.00022465,7]
[332503736,1721278273432,-500.0,0.00022465,2]
[332503737,1721278273441,-500.0,0.00022465,2]
[332503738,1721278273450,-500.0,0.00022465,2]
[332503739,1721278273459,-500.0,0.00022465,2]
[332503740,1721278273468,-528.41,0.00022465,2]
[332503741,1721278273477,-500.0,0.00022465,2]
[332503742,1721278273487,-151.0,0.00022465,7]
[332503743,1721278273496,-500.0,0.00022465,2]
[332503744,1721278273505,-500.0,0.00022465,2]
[332503745,1721278273514,-1174.7,0.00022465,2]
[332503746,1721278273523,-500.0,0.00022465,2]
[332503747,1721278273533,-500.0,0.00022465,2]
[332503748,1721278273543,-500.0,0.00022465,2]
[332503749,1721278273552,-151.0,0.00022465,7]
[332503750,1721278273561,-500.0,0.00022465,2]
[332503751,1721278273572,-285.67913913,0.00022465,2]
[332503752,1721278273581,-500.0,0.00022465,2]
[332503753,1721278273591,-151.0,0.00022465,7]
[332503754,1721278273600,-151.0,0.00022465,7]
[332503755,1721278273609,-500.0,0.00022465,2]
[332503756,1721278273618,-151.0,0.00022465,7]
[332503757,1721278273628,-510.57,0.00022465,2]
[332503758,1721278273637,-500.0,0.00022465,2]
[332503759,1721278273646,-675.6,0.00022465,2]
[332503760,1721278273656,-500.0,0.00022465,2]
[332503761,1721278273666,-500.0,0.00022465,2]
[332503762,1721278273675,-334.57517253,0.00022465,2]
[332503763,1721278273685,-500.0,0.00022465,2]
[332503764,1721278273694,-500.0,0.00022465,2]
[332503765,1721278273703,-611.81213288,0.00022465,2]
[332503766,1721278273712,-500.0,0.00022465,2]
[332503767,1721278273721,-500.0,0.00022465,2]
[332503768,1721278273730,-547.37879563,0.00022465,2]
[332503769,1721278273739,-808.44,0.00022465,2]
[332503770,1721278273749,-151.0,0.00022465,7]
[332503771,1721278273762,-500.0,0.00022465,2]
[332503772,1721278273777,-500.0,0.00022465,2]
[332503773,1721278273792,-500.0,0.00022465,2]
[332503774,1721278273804,-1485.25,0.00022465,2]
[332503775,1721278273815,-500.0,0.00022465,2]
[332503776,1721278273829,-500.0,0.00022465,2]
[332503777,1721278273842,-851.31,0.00022465,2]
[332503778,1721278273856,-500.0,0.00022465,2]
[332503779,1721278273869,-737.53,0.00022465,2]
[332503780,1721278273881,-731.61,0.00022465,2]
[332503781,1721278273896,-641.90990242,0.00022465,2]
[332503782,1721278273910,-500.0,0.00022465,2]
[332503783,1721278273925,-500.0,0.00022465,2]
[332503784,1721278273937,-500.0,0.00022465,2]
[332503785,1721278273952,-847.98,0.00022465,2]
[332503786,1721278273966,-1118.26,0.00022465,2]
[332503787,1721278273980,-1876.76,0.00022465,2]
[332503788,1721278273993,-500.0,0.00022465,2]
[332503789,1721278274005,-500.0,0.00022465,2]
[332503790,1721278274017,-500.0,0.00022465,2]
[332503791,1721278274030,-500.0,0.00022465,2]
[332503792,1721278274047,-500.0,0.00022465,2]
[332503793,1721278274059,-500.0,0.00022465,2]
[332503794,1721278274073,-500.0,0.00022465,2]
[332503795,1721278274088,-578.05,0.00022465,2]
[332503796,1721278274106,-873.21,0.00022465,2]
[332503797,1721278274120,-505.48186381,0.00022465,2]
[332503798,1721278274132,-500.0,0.00022465,2]
[332503799,1721278274143,-500.0,0.00022465,2]
[332503800,1721278274153,-500.0,0.00022465,2]
[332503801,1721278274164,-714.22,0.00022465,2]
[332503802,1721278274177,-151.0,0.00022465,7]
[332503803,1721278274190,-500.0,0.00022465,2]
[332503804,1721278274201,-151.0,0.00022465,7]
[332503805,1721278274213,-1825.95,0.00022465,2]
[332503806,1721278274225,-734.44,0.00022465,2]
[332503807,1721278274239,-500.0,0.00022465,2]
[332503808,1721278274250,-502.65910653,0.00022465,2]
[332503809,1721278274261,-500.0,0.00022465,2]
[332503810,1721278274271,-500.0,0.00022465,2]
[332503811,1721278274284,-500.0,0.00022465,2]
[332503812,1721278274295,-701.01,0.00022465,2]
[332503813,1721278274307,-510.79006553,0.00022465,2]
[332503814,1721278274319,-500.0,0.00022465,2]
[332503815,1721278274330,-869.23,0.00022465,2]
[332503816,1721278274342,-500.0,0.00022465,2]
[332503817,1721278274353,-500.0,0.00022465,2]
[332503818,1721278274364,-500.0,0.00022465,2]
[332503819,1721278274375,-500.8496489,0.00022465,2]
[332503820,1721278274387,-500.0,0.00022465,2]
[332503821,1721278274398,-500.0,0.00022465,2]
[332503822,1721278274410,-909.34,0.00022465,2]
[332503823,1721278274422,-500.0,0.00022465,2]
[332503824,1721278274433,-1334.21,0.00022465,2]
[332503825,1721278274445,-500.0,0.00022465,2]
[332503826,1721278274456,-1076.03,0.00022465,2]
[332503827,1721278274468,-621.2,0.00022465,2]
[332503828,1721278274480,-500.0,0.00022465,2]
[332503829,1721278274491,-500.0,0.00022465,2]
[332503830,1721278274502,-500.0,0.00022465,2]
[332503831,1721278274514,-151.0,0.00022465,7]
[332503832,1721278274525,-500.0,0.00022465,2]
[332503833,1721278274536,-500.0,0.00022465,2]
[332503834,1721278274547,-500.0,0.00022465,2]
[332503835,1721278274559,-500.0,0.00022465,2]
[332503836,1721278274571,-500.0,0.00022465,2]
[332503837,1721278274582,-500.0,0.00022465,2]
[332503838,1721278274597,-977.9,0.00022465,2]
[332503839,1721278274608,-500.0,0.00022465,2]
[332503840,1721278274620,-649.18310206,0.00022465,2]
[332503841,1721278274631,-500.0,0.00022465,2]
[332503842,1721278274642,-204.06753214,0.00022465,2]
[332503843,1721278274654,-500.0,0.00022465,2]
[332503844,1721278274665,-500.0,0.00022465,2]
[332503845,1721278274676,-502.34473742,0.00022465,2]
[332503846,1721278274688,-500.0,0.00022465,2]
[332503847,1721278274699,-500.0,0.00022465,2]
[332503848,1721278274710,-707.1,0.00022465,2]
[332503849,1721278274722,-501.1647321,0.00022465,2]
[332503850,1721278274733,-500.0,0.00022465,2]
[332503851,1721278274744,-796.34,0.00022465,2]
[332503852,1721278274756,-500.76831195,0.00022465,2]
[332503853,1721278274767,-500.0,0.00022465,2]
[332503854,1721278274779,-500.0,0.00022465,2]
[332503855,1721278274790,-773.11,0.00022465,2]
[332503856,1721278274801,-1277.33,0.00022465,2]
[332503857,1721278274814,-976.14,0.00022465,2]
[332503858,1721278274825,-990.23,0.00022465,2]
[332503859,1721278274836,-943.13,0.00022465,2]
[332503860,1721278274851,-501.28521237,0.00022465,2]
[332503861,1721278274864,-1332.14,0.00022465,2]
[332503862,1721278274875,-501.72133898,0.00022465,2]
[332503863,1721278274886,-694.43,0.00022465,2]
[332503864,1721278274900,-500.95062279,0.00022465,2]
[332503865,1721278274912,-1424.65,0.00022465,2]
[332503866,1721278274924,-500.0,0.00022465,2]
[332503867,1721278274935,-500.0,0.00022465,2]
[332503868,1721278274947,-275.3722,0.00022465,7]
[332503869,1721278274958,-500.0,0.00022465,2]
[332503870,1721278274969,-814.14,0.00022465,2]
[332503871,1721278274980,-500.0,0.00022465,2]
[332503872,1721278274992,-169.65471773,0.00022465,2]
[332503873,1721278275003,-275.3722,0.00022465,7]
[332503874,1721278275015,-500.0,0.00022465,2]
[332503875,1721278275027,-500.0,0.00022465,2]
[332503876,1721278275040,-500.0,0.00022465,2]
[332503877,1721278275053,-686.13,0.00022465,2]
[332503878,1721278275064,-665.3,0.00022465,2]
[332503879,1721278275076,-1725.67,0.00022465,2]
[332503880,1721278275087,-503.17994158,0.00022465,2]
[332503881,1721278275100,-500.0,0.00022465,2]
[332503882,1721278275110,-500.0,0.00022465,2]
[332503883,1721278275121,-907.71,0.00022465,2]
[332503884,1721278275132,-500.0,0.00022465,2]
[332503885,1721278275143,-501.38255485,0.00022465,2]
[332503886,1721278275156,-500.0,0.00022465,2]
[332503887,1721278275167,-500.0,0.00022465,2]
[332503888,1721278275178,-501.52062663,0.00022465,2]
[332503889,1721278275189,-151.0,0.00022465,7]
[332503890,1721278275200,-503.91573508,0.00022465,2]
[332503891,1721278275211,-682.42,0.00022465,2]
[332503892,1721278275222,-500.0,0.00022465,2]
[332503893,1721278275232,-539.26,0.00022465,2]
[332503894,1721278275243,-500.0,0.00022465,2]
[332503895,1721278275254,-502.85415877,0.00022465,2]
[332503896,1721278275266,-994.42,0.00022465,2]
[332503897,1721278275277,-742.88,0.00022465,2]
[332503898,1721278275289,-151.0,0.00022465,7]
[332503899,1721278275300,-472.72955387,0.00022465,2]
[332503900,1721278275311,-505.75460653,0.00022465,2]
[332503901,1721278275322,-588.79,0.00022465,2]
[332503902,1721278275332,-501.5855537,0.00022465,2]
[332503903,1721278275346,-500.0,0.00022465,2]
[332503904,1721278275357,-500.0,0.00022465,2]
[332503905,1721278275368,-500.0,0.00022465,2]
[332503906,1721278275379,-500.0,0.00022465,2]
[332503907,1721278275391,-500.0,0.00022465,2]
[332503908,1721278275402,-502.98392444,0.00022465,2]
[332503909,1721278275413,-516.2,0.00022465,2]
[332503910,1721278275424,-590.38,0.00022465,2]
[332503911,1721278275435,-504.00485508,0.00022465,2]
[332503912,1721278275446,-1470.62,0.00022465,2]
[332503913,1721278275457,-500.0,0.00022465,2]
[332503914,1721278275468,-504.44732978,0.00022465,2]
[332503915,1721278275480,-500.0,0.00022465,2]
[332503916,1721278275491,-1484.14,0.00022465,2]
[332503917,1721278275502,-647.32,0.00022465,2]
[332503918,1721278275513,-500.0,0.00022465,2]
[332503919,1721278275523,-500.0,0.00022465,2]
[332503920,1721278275534,-529.1473091,0.00022465,2]
[332503921,1721278275545,-486.49118106,0.00022465,2]
[332503922,1721278275556,-721.67,0.00022465,2]
[332503923,1721278275567,-500.0,0.00022465,2]
[332503924,1721278275578,-500.0,0.00022465,2]
[332503925,1721278275594,-500.0,0.00022465,2]
[332503926,1721278275605,-503.28527456,0.00022465,2]
[332503927,1721278275616,-1199.03,0.00022465,2]
[332503928,1721278275627,-500.0,0.00022465,2]
[332503929,1721278275638,-502.15590663,0.00022465,2]
[332503930,1721278275650,-673.34,0.00022465,2]
[332503931,1721278275661,-500.0,0.00022465,2]
[332503932,1721278275671,-1064.51,0.00022465,2]
[332503933,1721278275683,-616.153764,0.00022465,7]
[332503934,1721278275694,-500.0,0.00022465,2]
[332503935,1721278275705,-505.76663676,0.00022465,2]
[332503936,1721278275715,-500.0,0.00022465,2]
[332503937,1721278275726,-787.22,0.00022465,2]
[332503938,1721278275737,-500.0,0.00022465,2]
[332503939,1721278275749,-1277.65,0.00022465,2]